Department Family,Entity,Date,Expense Type,Expense Area,Supplier,Transaction Number,Amount,Description
Ministry of justice,CAFCASS,17/10/2022,Contact rechargeable,HQ,Action for Children,1116745,"33,930.00",Claim payment Separated Parent Information Programmes  course
Ministry of justice,CAFCASS,14/10/2022,Contact rechargeable,HQ,Axis12 Ltd,1116673,"53,571.35",Separated Parent Information Programmes  -parenting plan content dev
Ministry of justice,CAFCASS,19/10/2022,Partnership Commissioned CS,HQ,Child Action Northwest,1116887,"33,670.00",Improving Child and Family Arrangements  CANW North
Ministry of justice,CAFCASS,19/10/2022,Partnership Commissioned CS,HQ,Child Action Northwest,1116888,"43,520.00",Improving Child and Family Arrangements  CANW West
Ministry of justice,CAFCASS,24/10/2022,Partnership Commissioned CS,HQ,Children's Links (ICFA),1117081,"27,600.00",Improving Child and Family Arrangements  Children's Links
Ministry of justice,CAFCASS,04/10/2022,Agency Practitioners,HQ,Community Resourcing t/a Retinue Solutio,1116216,"2,172.46",Agency Staff
Ministry of justice,CAFCASS,04/10/2022,Agency Practitioners,Op Service Areas,Community Resourcing t/a Retinue Solutio,1116216,"84,758.05",Agency Staff
Ministry of justice,CAFCASS,04/10/2022,Temp Business Support Staff,HQ,Community Resourcing t/a Retinue Solutio,1116216,"7,676.33",Agency Staff
Ministry of justice,CAFCASS,04/10/2022,Temp Business Support Staff,Op Service Areas,Community Resourcing t/a Retinue Solutio,1116216,"1,708.23",Agency Staff
Ministry of justice,CAFCASS,17/10/2022,Agency Practitioners,HQ,Community Resourcing t/a Retinue Solutio,1116591,"1,670.17",Agency Staff
Ministry of justice,CAFCASS,17/10/2022,Agency Practitioners,Op Service Areas,Community Resourcing t/a Retinue Solutio,1116591,"51,285.97",Agency Staff
Ministry of justice,CAFCASS,17/10/2022,Temp Business Support Staff,HQ,Community Resourcing t/a Retinue Solutio,1116591,"5,448.45",Agency Staff
Ministry of justice,CAFCASS,17/10/2022,Temp Business Support Staff,Op Service Areas,Community Resourcing t/a Retinue Solutio,1116591,"1,679.91",Agency Staff
Ministry of justice,CAFCASS,24/10/2022,Agency Practitioners,Op Service Areas,Community Resourcing t/a Retinue Solutio,1117025,"47,928.63",Agency Staff
Ministry of justice,CAFCASS,24/10/2022,Agency Practitioners,HQ,Community Resourcing t/a Retinue Solutio,1117025,"5,019.79",Agency Staff
Ministry of justice,CAFCASS,24/10/2022,Temp Business Support Staff,HQ,Community Resourcing t/a Retinue Solutio,1117025,"15,732.22",Agency Staff
Ministry of justice,CAFCASS,24/10/2022,Temp Business Support Staff,Op Service Areas,Community Resourcing t/a Retinue Solutio,1117025,-11.06,Agency Staff
Ministry of justice,CAFCASS,24/10/2022,Agency Practitioners,Op Service Areas,Community Resourcing t/a Retinue Solutio,1117088,"70,544.03",Agency Staff
Ministry of justice,CAFCASS,24/10/2022,Agency Practitioners,HQ,Community Resourcing t/a Retinue Solutio,1117088,"2,161.50",Agency Staff
Ministry of justice,CAFCASS,24/10/2022,Temp Business Support Staff,Op Service Areas,Community Resourcing t/a Retinue Solutio,1117088,"1,710.00",Agency Staff
Ministry of justice,CAFCASS,24/10/2022,Temp Business Support Staff,HQ,Community Resourcing t/a Retinue Solutio,1117088,"9,291.36",Agency Staff
Ministry of justice,CAFCASS,31/10/2022,Agency Practitioners,Op Service Areas,Community Resourcing t/a Retinue Solutio,1117508,"61,467.51",Agency Staff
Ministry of justice,CAFCASS,31/10/2022,Agency Practitioners,HQ,Community Resourcing t/a Retinue Solutio,1117508,"4,106.96",Agency Staff
Ministry of justice,CAFCASS,31/10/2022,Temp Business Support Staff,HQ,Community Resourcing t/a Retinue Solutio,1117508,"10,721.55",Agency Staff
Ministry of justice,CAFCASS,31/10/2022,Temp Business Support Staff,Op Service Areas,Community Resourcing t/a Retinue Solutio,1117508,3.38,Agency Staff
Ministry of justice,CAFCASS,31/10/2022,Agency Practitioners,HQ,Community Resourcing t/a Retinue Solutio,1117657,"3,766.58",Agency Staff
Ministry of justice,CAFCASS,31/10/2022,Agency Practitioners,Op Service Areas,Community Resourcing t/a Retinue Solutio,1117657,"40,661.27",Agency Staff
Ministry of justice,CAFCASS,31/10/2022,Temp Business Support Staff,HQ,Community Resourcing t/a Retinue Solutio,1117657,"10,111.13",Agency Staff
Ministry of justice,CAFCASS,11/10/2022,T&S - UK (Non-Taxable),HQ,Corporate Travel Mngmnt North t/a CTM,1116507,"11,716.30",Corporate Travel Management
Ministry of justice,CAFCASS,11/10/2022,T&S - UK (Non-Taxable),Op Service Areas,Corporate Travel Mngmnt North t/a CTM,1116507,"15,175.69",Corporate Travel Management
Ministry of justice,CAFCASS,11/10/2022,T&S - UK (Non-Taxable) hotel,HQ,Corporate Travel Mngmnt North t/a CTM,1116507,"6,137.25",Corporate Travel Management  hotel
Ministry of justice,CAFCASS,11/10/2022,T&S - UK (Non-Taxable) hotel,Op Service Areas,Corporate Travel Mngmnt North t/a CTM,1116507,"6,501.17",Corporate Travel Management  hotel
Ministry of justice,CAFCASS,21/10/2022,Contact rechargeable,HQ,Family Action,1117016,"70,638.75",Claim payment Separated Parent Information Programmes  course
Ministry of justice,CAFCASS,18/10/2022,Little Fish contracted costs,HQ,Little Fish (UK) Limited,1116815,"222,402.24",Technology services
Ministry of justice,CAFCASS,31/10/2022,Rates,HQ,Ministry of Justice,1117507,"4,643.31",Chelmsford Rates
Ministry of justice,CAFCASS,31/10/2022,Rent,HQ,Ministry of Justice,1117507,"15,834.06",Chelmsford Rent
Ministry of justice,CAFCASS,31/10/2022,Service Charge,HQ,Ministry of Justice,1117507,"14,302.48",Chelmsford Serv Chg
Ministry of justice,CAFCASS,04/10/2022,Other IT contracted costs,HQ,Specialist Computer Centres Plc,1116204,"40,470.68",Laptops & Sleeves
Ministry of justice,CAFCASS,31/10/2022,Other IT contracted costs,HQ,Specialist Computer Centres Plc,1117533,"40,470.68",Laptops & Sleeves
Ministry of justice,CAFCASS,20/10/2022,Partnership Commissioned CS,HQ,Swan Family Centres Limited,1117009,"30,937.50",Improving Child and Family Arrangements  Swan Family
Ministry of justice,CAFCASS,07/10/2022,Rent,HQ,University of Warwick Science Park,1116374,"36,263.80",National Business Centre Rent
Ministry of justice,CAFCASS,07/10/2022,Service Charge,HQ,University of Warwick Science Park,1116374,"3,950.17",National Business Centre Serv Chg
Ministry of justice,CAFCASS,07/10/2022,Version 1,HQ,Version 1 Solutions Limited,1116364,"94,424.40",Technology services
